[Event "Titled Tuesday Blitz February 07 Early 2023"]
[White "Winkels, Marcel"]
[Black "Melikhov, Evgeny V."]
[WhiteFideId "1003887"]
[BlackFideId "4122046"]
[WhiteElo "1960"]
[BlackElo "2269"]
[Result "0-1"]
[Round "03"]
[TimeControl "180+2"]
[Date "2023.02.07"]
[WhiteClock "0:00:12"]
[BlackClock "0:00:21"]

1. e4 {[%clk 0:03:00]}  c5 {[%clk 0:02:56]} 2. Nc3 {[%clk 0:02:58]}  Nc6 {[%clk 0:02:56]} 3. g3 {[%clk 0:02:58]}  g6 {[%clk 0:02:56]} 4. Bg2 {[%clk 0:02:59]}  Bg7 {[%clk 0:02:56]} 5. d3 {[%clk 0:03:00]}  e6 {[%clk 0:02:54]} 6. Be3 {[%clk 0:03:00]}  d6 {[%clk 0:02:54]} 7. f4 {[%clk 0:02:59]}  Nge7 {[%clk 0:02:53]} 8. Nf3 {[%clk 0:02:59]}  O-O {[%clk 0:02:53]} 9. O-O {[%clk 0:02:59]}  Rb8 {[%clk 0:02:53]} 10. e5 {[%clk 0:02:59]}  dxe5 {[%clk 0:02:47]} 11. fxe5 {[%clk 0:02:41]}  Nd4 {[%clk 0:02:45]} 12. Ne4 {[%clk 0:02:38]}  Nxf3+ {[%clk 0:02:42]} 13. Qxf3 {[%clk 0:02:27]}  Bxe5 {[%clk 0:02:42]} 14. Bxc5 {[%clk 0:02:25]}  Bd4+ {[%clk 0:02:37]} 15. Kh1 {[%clk 0:02:17]}  Bxc5 {[%clk 0:02:36]} 16. Nxc5 {[%clk 0:02:16]}  Nf5 {[%clk 0:02:12]} 17. c3 {[%clk 0:02:06]}  b6 {[%clk 0:02:04]} 18. Ne4 {[%clk 0:02:03]}  Bb7 {[%clk 0:02:04]} 19. d4 {[%clk 0:01:47]}  Bxe4 {[%clk 0:02:00]} 20. Qxe4 {[%clk 0:01:45]}  Qd6 {[%clk 0:01:51]} 21. Rae1 {[%clk 0:01:29]}  Rbd8 {[%clk 0:01:48]} 22. Qe5 {[%clk 0:01:29]}  Qxe5 {[%clk 0:01:48]} 23. Rxe5 {[%clk 0:01:28]}  Rd6 {[%clk 0:01:43]} 24. a4 {[%clk 0:01:24]}  a5 {[%clk 0:01:35]} 25. Be4 {[%clk 0:01:10]}  Rfd8 {[%clk 0:01:26]} 26. Bxf5 {[%clk 0:01:09]}  gxf5 {[%clk 0:01:24]} 27. Kg2 {[%clk 0:01:02]}  Rd5 {[%clk 0:01:23]} 28. Rfe1 {[%clk 0:01:02]}  Kg7 {[%clk 0:01:23]} 29. Kf3 {[%clk 0:00:59]}  Kf6 {[%clk 0:01:22]} 30. Rxd5 {[%clk 0:00:58]}  Rxd5 {[%clk 0:01:21]} 31. Ke3 {[%clk 0:00:54]}  b5 {[%clk 0:01:19]} 32. axb5 {[%clk 0:00:50]}  Rxb5 {[%clk 0:01:19]} 33. Re2 {[%clk 0:00:51]}  a4 {[%clk 0:01:17]} 34. Kd3 {[%clk 0:00:50]}  h5 {[%clk 0:00:58]} 35. Kc4 {[%clk 0:00:50]}  Rb7 {[%clk 0:00:57]} 36. Kd3 {[%clk 0:00:43]}  Rb3 {[%clk 0:00:48]} 37. Kc2 {[%clk 0:00:43]}  h4 {[%clk 0:00:40]} 38. Re5 {[%clk 0:00:42]}  hxg3 {[%clk 0:00:34]} 39. hxg3 {[%clk 0:00:41]}  Kg5 {[%clk 0:00:34]} 40. Ra5 {[%clk 0:00:40]}  Kg4 {[%clk 0:00:34]} 41. Rxa4 {[%clk 0:00:40]}  Rb7 {[%clk 0:00:34]} 42. c4 {[%clk 0:00:37]}  Kxg3 {[%clk 0:00:34]} 43. c5 {[%clk 0:00:37]}  f4 {[%clk 0:00:34]} 44. c6 {[%clk 0:00:33]}  Rc7 {[%clk 0:00:34]} 45. Ra3+ {[%clk 0:00:31]}  f3 {[%clk 0:00:33]} 46. Rc3 {[%clk 0:00:32]}  Kg2 {[%clk 0:00:32]} 47. Kd1 {[%clk 0:00:16]}  f2 {[%clk 0:00:32]} 48. Rc2 {[%clk 0:00:16]}  Rxc6 {[%clk 0:00:26]} 49. Re2 {[%clk 0:00:14]}  Rd6 {[%clk 0:00:23]} 50. Rd2 {[%clk 0:00:12]}  Rxd4 {[%clk 0:00:21]} 0-1


[Site "https://www.chess.com"]

[Event "Titled Tuesday Blitz February 07 Early 2023"]
[White "Sabar, Ethmane Daouda"]
[Black "Kostiukov, Alexandr"]
[WhiteFideId "19600097"]
[BlackFideId "14108100"]
[WhiteElo "2040"]
[BlackElo "2271"]
[Result "0-1"]
[Round "03"]
[TimeControl "180+2"]
[Date "2023.02.07"]
[WhiteClock "0:00:32"]
[BlackClock "0:01:25"]

1. e4 {[%clk 0:02:05]}  c5 {[%clk 0:02:58]} 2. a3 {[%clk 0:01:58]}  g6 {[%clk 0:02:55]} 3. Nc3 {[%clk 0:01:53]}  Bg7 {[%clk 0:02:55]} 4. f4 {[%clk 0:01:52]}  Nc6 {[%clk 0:02:55]} 5. Nf3 {[%clk 0:01:53]}  e6 {[%clk 0:02:54]} 6. Bb5 {[%clk 0:01:52]}  Nge7 {[%clk 0:02:52]} 7. O-O {[%clk 0:01:52]}  O-O {[%clk 0:02:52]} 8. Re1 {[%clk 0:01:52]}  Nd4 {[%clk 0:02:52]} 9. Bf1 {[%clk 0:01:51]}  d6 {[%clk 0:02:42]} 10. d3 {[%clk 0:01:49]}  b5 {[%clk 0:02:41]} 11. Nxd4 {[%clk 0:01:46]}  Bxd4+ {[%clk 0:02:36]} 12. Be3 {[%clk 0:01:46]}  Qb6 {[%clk 0:02:27]} 13. Bxd4 {[%clk 0:01:42]}  cxd4 {[%clk 0:02:28]} 14. Ne2 {[%clk 0:01:43]}  f5 {[%clk 0:02:18]} 15. Kh1 {[%clk 0:01:35]}  Bb7 {[%clk 0:02:18]} 16. e5 {[%clk 0:01:25]}  dxe5 {[%clk 0:02:11]} 17. fxe5 {[%clk 0:01:26]}  Nd5 {[%clk 0:02:11]} 18. Ng1 {[%clk 0:01:11]}  Ne3 {[%clk 0:02:08]} 19. Qd2 {[%clk 0:01:07]}  f4 {[%clk 0:02:04]} 20. Nf3 {[%clk 0:01:02]}  Bxf3 {[%clk 0:02:00]} 21. gxf3 {[%clk 0:01:03]}  Rf5 {[%clk 0:01:59]} 22. Bh3 {[%clk 0:00:51]}  Rxe5 {[%clk 0:01:53]} 23. Rg1 {[%clk 0:00:42]}  Qc6 {[%clk 0:01:47]} 24. Qf2 {[%clk 0:00:38]}  Rf8 {[%clk 0:01:32]} 25. Rac1 {[%clk 0:00:32]}  Kg7 {[%clk 0:01:25]} 0-1


[Site "https://www.chess.com"]

[Event "Titled Tuesday Blitz February 07 Early 2023"]
[White "Larina, Maria"]
[Black "Kaganskiy, Gleb"]
[WhiteFideId "24113182"]
[BlackFideId "4132025"]
[WhiteElo "1948"]
[BlackElo "2205"]
[Result "1-0"]
[Round "03"]
[TimeControl "180+2"]
[Date "2023.02.07"]
[WhiteClock "0:01:51"]
[BlackClock "0:01:46"]

1. e4 {[%clk 0:03:00]}  e6 {[%clk 0:02:59]} 2. d4 {[%clk 0:03:00]}  d5 {[%clk 0:02:59]} 3. Nc3 {[%clk 0:03:01]}  Bb4 {[%clk 0:02:54]} 4. exd5 {[%clk 0:03:01]}  exd5 {[%clk 0:02:52]} 5. Bd3 {[%clk 0:03:01]}  Ne7 {[%clk 0:02:50]} 6. Qh5 {[%clk 0:02:55]}  c6 {[%clk 0:02:41]} 7. Nf3 {[%clk 0:02:33]}  Nd7 {[%clk 0:02:39]} 8. Ng5 {[%clk 0:02:12]}  g6 {[%clk 0:02:31]} 9. Qh6 {[%clk 0:01:56]}  Rg8 {[%clk 0:02:01]} 10. Qxh7 {[%clk 0:01:51]}  Rf8 {[%clk 0:01:46]} 1-0


[Site "https://www.chess.com"]

[Event "Titled Tuesday Blitz February 07 Early 2023"]
[White "Hoffmann, Asa"]
[Black "Serpi, Andrea"]
[WhiteFideId "2001470"]
[BlackFideId "2847499"]
[WhiteElo "2185"]
[BlackElo "2191"]
[Result "0-1"]
[Round "03"]
[TimeControl "180+2"]
[Date "2023.02.07"]
[WhiteClock "0:01:25"]
[BlackClock "0:02:02"]

1. d4 {[%clk 0:02:55]}  Nf6 {[%clk 0:02:59]} 2. Bg5 {[%clk 0:02:55]}  Ne4 {[%clk 0:02:59]} 3. Bf4 {[%clk 0:02:54]}  Nc6 {[%clk 0:02:59]} 4. f3 {[%clk 0:02:54]}  Nf6 {[%clk 0:02:58]} 5. e4 {[%clk 0:02:53]}  d6 {[%clk 0:02:50]} 6. Ne2 {[%clk 0:02:49]}  e5 {[%clk 0:02:47]} 7. Be3 {[%clk 0:02:49]}  Be7 {[%clk 0:02:44]} 8. d5 {[%clk 0:02:48]}  Nb8 {[%clk 0:02:43]} 9. c4 {[%clk 0:02:48]}  O-O {[%clk 0:02:43]} 10. Nbc3 {[%clk 0:02:48]}  c6 {[%clk 0:02:42]} 11. Qd2 {[%clk 0:02:44]}  cxd5 {[%clk 0:02:42]} 12. cxd5 {[%clk 0:02:44]}  a6 {[%clk 0:02:41]} 13. a4 {[%clk 0:02:43]}  Nbd7 {[%clk 0:02:41]} 14. Ng3 {[%clk 0:02:37]}  Re8 {[%clk 0:02:37]} 15. Be2 {[%clk 0:02:35]}  Nf8 {[%clk 0:02:37]} 16. O-O {[%clk 0:02:30]}  Ng6 {[%clk 0:02:37]} 17. a5 {[%clk 0:02:24]}  h5 {[%clk 0:02:34]} 18. Na4 {[%clk 0:02:15]}  h4 {[%clk 0:02:34]} 19. Nf5 {[%clk 0:02:14]}  Bxf5 {[%clk 0:02:26]} 20. exf5 {[%clk 0:02:14]}  Nf4 {[%clk 0:02:26]} 21. Bxf4 {[%clk 0:02:09]}  exf4 {[%clk 0:02:27]} 22. Nb6 {[%clk 0:02:08]}  Rb8 {[%clk 0:02:25]} 23. Qxf4 {[%clk 0:02:07]}  Bf8 {[%clk 0:02:20]} 24. Bd3 {[%clk 0:02:01]}  Re5 {[%clk 0:02:16]} 25. Be4 {[%clk 0:01:58]}  Qe8 {[%clk 0:02:08]} 26. Rfe1 {[%clk 0:01:55]}  Qb5 {[%clk 0:02:05]} 27. Qd2 {[%clk 0:01:40]}  Rbe8 {[%clk 0:02:04]} 28. Qd3 {[%clk 0:01:25]}  Qxd3 {[%clk 0:02:02]} 0-1


[Site "https://www.chess.com"]

[Event "Titled Tuesday Blitz February 07 Early 2023"]
[White "Levine, David"]
[Black "Krzywda, Andrzej"]
[WhiteFideId "2011611"]
[BlackFideId "1114565"]
[WhiteElo "2040"]
[BlackElo "2223"]
[Result "0-1"]
[Round "03"]
[TimeControl "180+2"]
[Date "2023.02.07"]
[WhiteClock "0:00:41"]
[BlackClock "0:00:30"]

1. d4 {[%clk 0:02:59]}  Nf6 {[%clk 0:02:58]} 2. c4 {[%clk 0:02:59]}  c5 {[%clk 0:02:59]} 3. d5 {[%clk 0:02:58]}  b5 {[%clk 0:02:59]} 4. Qc2 {[%clk 0:02:57]}  b4 {[%clk 0:02:58]} 5. a3 {[%clk 0:02:54]}  d6 {[%clk 0:02:56]} 6. e4 {[%clk 0:02:54]}  g6 {[%clk 0:02:55]} 7. Bd2 {[%clk 0:02:50]}  Bg7 {[%clk 0:02:45]} 8. axb4 {[%clk 0:02:48]}  cxb4 {[%clk 0:02:46]} 9. Bxb4 {[%clk 0:02:47]}  O-O {[%clk 0:02:44]} 10. Bd3 {[%clk 0:02:42]}  Nbd7 {[%clk 0:02:43]} 11. Nf3 {[%clk 0:02:39]}  Qb6 {[%clk 0:02:38]} 12. Bc3 {[%clk 0:02:33]}  Nc5 {[%clk 0:02:34]} 13. O-O {[%clk 0:02:31]}  a5 {[%clk 0:02:33]} 14. Nbd2 {[%clk 0:02:20]}  a4 {[%clk 0:02:32]} 15. Rfb1 {[%clk 0:02:13]}  Ba6 {[%clk 0:02:30]} 16. Nd4 {[%clk 0:02:08]}  Ng4 {[%clk 0:02:17]} 17. N2f3 {[%clk 0:01:55]}  Rfc8 {[%clk 0:02:05]} 18. Nc6 {[%clk 0:01:46]}  Rc7 {[%clk 0:01:50]} 19. Bxg7 {[%clk 0:01:36]}  Kxg7 {[%clk 0:01:51]} 20. h3 {[%clk 0:01:29]}  Nf6 {[%clk 0:01:26]} 21. e5 {[%clk 0:01:23]}  Nxd5 {[%clk 0:01:17]} 22. exd6 {[%clk 0:01:16]}  exd6 {[%clk 0:01:17]} 23. cxd5 {[%clk 0:01:07]}  Nxd3 {[%clk 0:01:10]} 24. Qc3+ {[%clk 0:01:02]}  Kg8 {[%clk 0:01:10]} 25. Qf6 {[%clk 0:00:54]}  Qxf2+ {[%clk 0:00:52]} 26. Kh1 {[%clk 0:00:54]}  Re8 {[%clk 0:00:42]} 27. Rf1 {[%clk 0:00:46]}  Qxb2 {[%clk 0:00:41]} 28. Rxa4 {[%clk 0:00:41]}  Qxf6 {[%clk 0:00:30]} 0-1


[Site "https://www.chess.com"]

[Event "Titled Tuesday Blitz February 07 Early 2023"]
[White "Necula, Iulian"]
[Black "Carrasco Miranda, Andres"]
[WhiteFideId "1232380"]
[BlackFideId "3405990"]
[WhiteElo "1851"]
[BlackElo "2240"]
[Result "0-1"]
[Round "03"]
[TimeControl "180+2"]
[Date "2023.02.07"]
[WhiteClock "0:00:23"]
[BlackClock "0:00:34"]

1. d4 {[%clk 0:03:00]}  Nf6 {[%clk 0:02:54]} 2. Nc3 {[%clk 0:03:01]}  d5 {[%clk 0:02:54]} 3. Bf4 {[%clk 0:03:00]}  g6 {[%clk 0:02:52]} 4. e3 {[%clk 0:02:58]}  Bg7 {[%clk 0:02:52]} 5. h3 {[%clk 0:02:58]}  O-O {[%clk 0:02:52]} 6. Nf3 {[%clk 0:02:58]}  c5 {[%clk 0:02:52]} 7. Nb5 {[%clk 0:02:49]}  Na6 {[%clk 0:02:52]} 8. a4 {[%clk 0:02:47]}  Ne4 {[%clk 0:02:46]} 9. Be2 {[%clk 0:02:35]}  Be6 {[%clk 0:02:33]} 10. O-O {[%clk 0:02:33]}  f6 {[%clk 0:02:27]} 11. Ra3 {[%clk 0:02:16]}  Bf7 {[%clk 0:02:25]} 12. Nd2 {[%clk 0:02:06]}  Nxd2 {[%clk 0:02:20]} 13. Qxd2 {[%clk 0:02:07]}  e5 {[%clk 0:02:16]} 14. dxe5 {[%clk 0:02:05]}  fxe5 {[%clk 0:02:16]} 15. Bg3 {[%clk 0:02:05]}  Nc7 {[%clk 0:01:57]} 16. Nxc7 {[%clk 0:01:59]}  Qxc7 {[%clk 0:01:58]} 17. Rd1 {[%clk 0:01:54]}  a6 {[%clk 0:01:41]} 18. Bf3 {[%clk 0:01:52]}  Rad8 {[%clk 0:01:38]} 19. Rd3 {[%clk 0:01:39]}  c4 {[%clk 0:01:10]} 20. Rxd5 {[%clk 0:01:36]}  Bxd5 {[%clk 0:01:09]} 21. Bxd5+ {[%clk 0:01:37]}  Kh8 {[%clk 0:01:08]} 22. e4 {[%clk 0:01:35]}  b5 {[%clk 0:01:07]} 23. axb5 {[%clk 0:01:35]}  axb5 {[%clk 0:01:08]} 24. Qb4 {[%clk 0:01:32]}  Qb6 {[%clk 0:01:00]} 25. Qc3 {[%clk 0:01:26]}  Rfe8 {[%clk 0:00:50]} 26. Rf1 {[%clk 0:01:13]}  Qc5 {[%clk 0:00:49]} 27. b4 {[%clk 0:01:10]}  Qd4 {[%clk 0:00:49]} 28. Qf3 {[%clk 0:00:59]}  Rf8 {[%clk 0:00:47]} 29. Qg4 {[%clk 0:00:58]}  c3 {[%clk 0:00:42]} 30. h4 {[%clk 0:00:57]}  Rxd5 {[%clk 0:00:40]} 31. h5 {[%clk 0:00:51]}  Rd6 {[%clk 0:00:39]} 32. h6 {[%clk 0:00:50]}  Bxh6 {[%clk 0:00:39]} 33. Kh2 {[%clk 0:00:37]}  Bf4 {[%clk 0:00:37]} 34. Ra1 {[%clk 0:00:26]}  Qxe4 {[%clk 0:00:35]} 35. Ra7 {[%clk 0:00:22]}  Bxg3+ {[%clk 0:00:35]} 36. fxg3 {[%clk 0:00:23]}  Qxg4 {[%clk 0:00:34]} 0-1


[Site "https://www.chess.com"]

[Event "Titled Tuesday Blitz February 07 Early 2023"]
[White "Pakleza, Zbigniew"]
[Black "So, Wesley"]
[WhiteFideId "1119290"]
[BlackFideId "5202213"]
[WhiteElo "2494"]
[BlackElo "2760"]
[Result "0-1"]
[Round "04"]
[TimeControl "180+2"]
[Date "2023.02.07"]
[WhiteClock "0:00:02"]
[BlackClock "0:00:56"]

1. d4 {[%clk 0:03:00]}  Nf6 {[%clk 0:02:59]} 2. Nf3 {[%clk 0:03:00]}  d5 {[%clk 0:02:59]} 3. Bf4 {[%clk 0:03:00]}  c5 {[%clk 0:02:57]} 4. c3 {[%clk 0:03:01]}  Nc6 {[%clk 0:02:54]} 5. Nbd2 {[%clk 0:03:01]}  Qb6 {[%clk 0:02:45]} 6. Qb3 {[%clk 0:02:59]}  cxd4 {[%clk 0:02:41]} 7. Qxb6 {[%clk 0:02:57]}  axb6 {[%clk 0:02:42]} 8. Nxd4 {[%clk 0:02:57]}  Bd7 {[%clk 0:02:33]} 9. Bg3 {[%clk 0:02:14]}  Nh5 {[%clk 0:02:23]} 10. e3 {[%clk 0:02:12]}  e5 {[%clk 0:02:15]} 11. Nb5 {[%clk 0:01:54]}  Nxg3 {[%clk 0:02:07]} 12. hxg3 {[%clk 0:01:55]}  O-O-O {[%clk 0:02:07]} 13. O-O-O {[%clk 0:01:24]}  Bg4 {[%clk 0:02:05]} 14. Re1 {[%clk 0:01:08]}  g6 {[%clk 0:02:03]} 15. Be2 {[%clk 0:01:07]}  Be6 {[%clk 0:02:03]} 16. Nf3 {[%clk 0:01:04]}  Be7 {[%clk 0:02:02]} 17. a3 {[%clk 0:00:58]}  h5 {[%clk 0:02:01]} 18. Rd1 {[%clk 0:00:56]}  Bg4 {[%clk 0:01:57]} 19. Rhe1 {[%clk 0:00:56]}  Rd7 {[%clk 0:01:50]} 20. Rd2 {[%clk 0:00:45]}  Rhd8 {[%clk 0:01:49]} 21. Red1 {[%clk 0:00:45]}  Be6 {[%clk 0:01:42]} 22. Kb1 {[%clk 0:00:42]}  Bf6 {[%clk 0:01:31]} 23. Ne1 {[%clk 0:00:36]}  Na5 {[%clk 0:01:28]} 24. f4 {[%clk 0:00:21]}  Nb3 {[%clk 0:01:22]} 25. Rc2 {[%clk 0:00:21]}  Nc5 {[%clk 0:01:16]} 26. Bd3 {[%clk 0:00:14]}  Bg4 {[%clk 0:01:11]} 27. Rdd2 {[%clk 0:00:12]}  Nb3 {[%clk 0:01:07]} 28. Rf2 {[%clk 0:00:12]}  Bd1 {[%clk 0:01:07]} 29. fxe5 {[%clk 0:00:09]}  Bxe5 {[%clk 0:01:08]} 30. Nd4 {[%clk 0:00:08]}  Bxg3 {[%clk 0:00:57]} 31. Nxb3 {[%clk 0:00:04]}  Bxf2 {[%clk 0:00:57]} 32. Rxf2 {[%clk 0:00:05]}  Bxb3 {[%clk 0:00:57]} 33. Nf3 {[%clk 0:00:06]}  Re7 {[%clk 0:00:56]} 34. Re2 {[%clk 0:00:05]}  Rde8 {[%clk 0:00:56]} 35. Nd4 {[%clk 0:00:05]}  Rxe3 {[%clk 0:00:55]} 36. Rxe3 {[%clk 0:00:02]}  Rxe3 {[%clk 0:00:56]} 37. Bb5 {[%clk 0:00:02]} 0-1


[Site "https://www.chess.com"]

[Event "Titled Tuesday Blitz February 07 Early 2023"]
[White "Rakhmanov, Aleksandr"]
[Black "Indjic, Aleksandar"]
[WhiteFideId "4173708"]
[BlackFideId "911925"]
[WhiteElo "2632"]
[BlackElo "2618"]
[Result "1-0"]
[Round "04"]
[TimeControl "180+2"]
[Date "2023.02.07"]
[WhiteClock "0:00:54"]
[BlackClock "0:00:02"]

1. Nf3 {[%clk 0:03:00]}  d5 {[%clk 0:02:56]} 2. g3 {[%clk 0:03:01]}  Nc6 {[%clk 0:02:55]} 3. d4 {[%clk 0:03:00]}  Bf5 {[%clk 0:02:55]} 4. Bg2 {[%clk 0:03:00]}  Nb4 {[%clk 0:02:56]} 5. Na3 {[%clk 0:03:01]}  e6 {[%clk 0:02:56]} 6. c3 {[%clk 0:03:01]}  Nc6 {[%clk 0:02:55]} 7. Qb3 {[%clk 0:03:02]}  Rb8 {[%clk 0:02:53]} 8. O-O {[%clk 0:03:02]}  h5 {[%clk 0:02:52]} 9. h4 {[%clk 0:03:00]}  Nf6 {[%clk 0:02:38]} 10. Ne5 {[%clk 0:02:59]}  Nxe5 {[%clk 0:02:34]} 11. dxe5 {[%clk 0:02:59]}  Nd7 {[%clk 0:02:34]} 12. c4 {[%clk 0:02:54]}  Nc5 {[%clk 0:02:20]} 13. Qd1 {[%clk 0:02:41]}  c6 {[%clk 0:02:19]} 14. Be3 {[%clk 0:02:34]}  a5 {[%clk 0:02:14]} 15. Rc1 {[%clk 0:02:31]}  Ne4 {[%clk 0:02:02]} 16. cxd5 {[%clk 0:02:29]}  exd5 {[%clk 0:02:01]} 17. Nc2 {[%clk 0:02:19]}  c5 {[%clk 0:01:36]} 18. Bf4 {[%clk 0:02:17]}  g5 {[%clk 0:01:01]} 19. hxg5 {[%clk 0:01:49]}  d4 {[%clk 0:00:59]} 20. e6 {[%clk 0:01:09]}  Nxg5 {[%clk 0:00:14]} 21. Bxb8 {[%clk 0:01:01]}  Qxb8 {[%clk 0:00:14]} 22. Nxd4 {[%clk 0:01:00]}  Bg4 {[%clk 0:00:05]} 23. Nc6 {[%clk 0:00:56]}  Qc7 {[%clk 0:00:03]} 24. Qd7+ {[%clk 0:00:53]}  Qxd7 {[%clk 0:00:02]} 25. exd7+ {[%clk 0:00:54]} 1-0


[Site "https://www.chess.com"]

[Event "Titled Tuesday Blitz February 07 Early 2023"]
[White "Zierk, Steven"]
[Black "Paichadze, Luka"]
[WhiteFideId "2034255"]
[BlackFideId "13602934"]
[WhiteElo "2488"]
[BlackElo "2515"]
[Result "1-0"]
[Round "04"]
[TimeControl "180+2"]
[Date "2023.02.07"]
[WhiteClock "0:00:44"]
[BlackClock "0:00:13"]

1. e4 {[%clk 0:03:00]}  c6 {[%clk 0:03:00]} 2. d4 {[%clk 0:03:00]}  d5 {[%clk 0:03:00]} 3. e5 {[%clk 0:03:01]}  Bf5 {[%clk 0:03:00]} 4. Nf3 {[%clk 0:03:01]}  e6 {[%clk 0:03:00]} 5. Be2 {[%clk 0:03:02]}  Ne7 {[%clk 0:02:57]} 6. O-O {[%clk 0:03:01]}  Nd7 {[%clk 0:02:56]} 7. a4 {[%clk 0:02:47]}  h6 {[%clk 0:02:55]} 8. a5 {[%clk 0:02:47]}  Bh7 {[%clk 0:02:55]} 9. c4 {[%clk 0:02:39]}  dxc4 {[%clk 0:02:52]} 10. Bxc4 {[%clk 0:02:39]}  Nd5 {[%clk 0:02:50]} 11. Nc3 {[%clk 0:02:36]}  Be7 {[%clk 0:02:49]} 12. Qe2 {[%clk 0:02:18]}  O-O {[%clk 0:02:45]} 13. Ne4 {[%clk 0:02:17]}  Re8 {[%clk 0:02:26]} 14. Bd2 {[%clk 0:02:16]}  Nf8 {[%clk 0:02:26]} 15. Rfc1 {[%clk 0:02:12]}  Ng6 {[%clk 0:02:19]} 16. g3 {[%clk 0:02:12]}  Nf8 {[%clk 0:02:19]} 17. Ne1 {[%clk 0:01:54]}  Rb8 {[%clk 0:02:06]} 18. Nd3 {[%clk 0:01:50]}  Nd7 {[%clk 0:01:56]} 19. b4 {[%clk 0:01:43]}  a6 {[%clk 0:01:51]} 20. Ndc5 {[%clk 0:01:40]}  Nxc5 {[%clk 0:01:46]} 21. bxc5 {[%clk 0:01:41]}  Bxe4 {[%clk 0:01:39]} 22. Qxe4 {[%clk 0:01:42]}  Bf8 {[%clk 0:01:40]} 23. h4 {[%clk 0:01:36]}  h5 {[%clk 0:01:23]} 24. Rab1 {[%clk 0:01:35]}  g6 {[%clk 0:01:16]} 25. Rb3 {[%clk 0:01:35]}  Nc7 {[%clk 0:01:15]} 26. Kg2 {[%clk 0:00:57]}  Nb5 {[%clk 0:01:15]} 27. Rd3 {[%clk 0:00:57]}  Re7 {[%clk 0:01:05]} 28. Bg5 {[%clk 0:00:56]}  Qxa5 {[%clk 0:01:02]} 29. Bxe7 {[%clk 0:00:56]}  Bxe7 {[%clk 0:01:03]} 30. Bxe6 {[%clk 0:00:55]}  Kg7 {[%clk 0:00:49]} 31. Bxf7 {[%clk 0:00:55]}  Kxf7 {[%clk 0:00:48]} 32. e6+ {[%clk 0:00:55]}  Kg7 {[%clk 0:00:14]} 33. Qe5+ {[%clk 0:00:55]}  Bf6 {[%clk 0:00:15]} 34. Qxb8 {[%clk 0:00:55]}  Nxd4 {[%clk 0:00:14]} 35. Qxb7+ {[%clk 0:00:50]}  Kh6 {[%clk 0:00:13]} 36. Qf7 {[%clk 0:00:48]}  Qd8 {[%clk 0:00:12]} 37. e7 {[%clk 0:00:45]}  Bxe7 {[%clk 0:00:13]} 38. Qf4+ {[%clk 0:00:45]}  g5 {[%clk 0:00:13]} 39. Qxd4 {[%clk 0:00:44]} 1-0


[Site "https://www.chess.com"]

[Event "Titled Tuesday Blitz February 07 Early 2023"]
[White "Galchenko, Matvey"]
[Black "Sjugirov, Sanan"]
[WhiteFideId "24175480"]
[BlackFideId "4189302"]
[WhiteElo "2438"]
[BlackElo "2712"]
[Result "0-1"]
[Round "04"]
[TimeControl "180+2"]
[Date "2023.02.07"]
[WhiteClock "0:00:10"]
[BlackClock "0:00:05"]

1. e4 {[%clk 0:03:00]}  c5 {[%clk 0:02:59]} 2. c3 {[%clk 0:02:59]}  Nf6 {[%clk 0:02:58]} 3. e5 {[%clk 0:02:59]}  Nd5 {[%clk 0:02:58]} 4. Nf3 {[%clk 0:03:00]}  d6 {[%clk 0:02:56]} 5. Bc4 {[%clk 0:02:58]}  Nb6 {[%clk 0:02:34]} 6. Bb3 {[%clk 0:02:57]}  c4 {[%clk 0:02:24]} 7. Bc2 {[%clk 0:02:56]}  Nc6 {[%clk 0:02:25]} 8. exd6 {[%clk 0:02:56]}  Qxd6 {[%clk 0:02:26]} 9. O-O {[%clk 0:02:56]}  Bg4 {[%clk 0:02:25]} 10. Re1 {[%clk 0:02:56]}  e6 {[%clk 0:01:51]} 11. b3 {[%clk 0:02:54]}  cxb3 {[%clk 0:01:50]} 12. axb3 {[%clk 0:02:55]}  Be7 {[%clk 0:01:42]} 13. Na3 {[%clk 0:02:55]}  O-O {[%clk 0:01:39]} 14. Nc4 {[%clk 0:02:55]}  Qc7 {[%clk 0:01:31]} 15. h3 {[%clk 0:02:52]}  Bh5 {[%clk 0:01:30]} 16. d4 {[%clk 0:02:24]}  Nd5 {[%clk 0:01:25]} 17. Bd2 {[%clk 0:02:05]}  b5 {[%clk 0:01:25]} 18. Ne3 {[%clk 0:02:04]}  Nxe3 {[%clk 0:01:20]} 19. Bxe3 {[%clk 0:02:01]}  a6 {[%clk 0:01:02]} 20. Qd2 {[%clk 0:01:25]}  Bxf3 {[%clk 0:00:47]} 21. Qd3 {[%clk 0:01:24]}  g6 {[%clk 0:00:45]} 22. gxf3 {[%clk 0:01:24]}  Rfc8 {[%clk 0:00:40]} 23. Re2 {[%clk 0:01:11]}  Bd6 {[%clk 0:00:38]} 24. Qe4 {[%clk 0:01:03]}  Ne7 {[%clk 0:00:36]} 25. Bd2 {[%clk 0:00:54]}  Nd5 {[%clk 0:00:34]} 26. c4 {[%clk 0:00:46]}  bxc4 {[%clk 0:00:34]} 27. bxc4 {[%clk 0:00:47]}  Qxc4 {[%clk 0:00:35]} 28. Bd3 {[%clk 0:00:48]}  Qc6 {[%clk 0:00:31]} 29. Ree1 {[%clk 0:00:40]}  Bb4 {[%clk 0:00:18]} 30. Bxb4 {[%clk 0:00:34]}  Nxb4 {[%clk 0:00:18]} 31. Qxc6 {[%clk 0:00:34]}  Nxc6 {[%clk 0:00:13]} 32. Be4 {[%clk 0:00:35]}  Rab8 {[%clk 0:00:11]} 33. d5 {[%clk 0:00:32]}  exd5 {[%clk 0:00:12]} 34. Bxd5 {[%clk 0:00:33]}  Nb4 {[%clk 0:00:11]} 35. Be4 {[%clk 0:00:29]}  Rb5 {[%clk 0:00:07]} 36. Ra4 {[%clk 0:00:27]}  Rcb8 {[%clk 0:00:05]} 37. Rc1 {[%clk 0:00:23]}  Kg7 {[%clk 0:00:05]} 38. Rc7 {[%clk 0:00:22]}  Kf8 {[%clk 0:00:03]} 39. Rc1 {[%clk 0:00:13]}  R5b6 {[%clk 0:00:04]} 40. Kg2 {[%clk 0:00:12]}  Kg7 {[%clk 0:00:04]} 41. Ra5 {[%clk 0:00:12]}  h5 {[%clk 0:00:04]} 42. Rca1 {[%clk 0:00:11]}  Rb5 {[%clk 0:00:04]} 43. R5a4 {[%clk 0:00:11]}  f5 {[%clk 0:00:04]} 44. Bb1 {[%clk 0:00:11]}  Nd5 {[%clk 0:00:04]} 45. Bd3 {[%clk 0:00:11]}  Rb4 {[%clk 0:00:04]} 46. Bxa6 {[%clk 0:00:11]}  Nf4+ {[%clk 0:00:03]} 47. Kg3 {[%clk 0:00:11]}  Kf6 {[%clk 0:00:02]} 48. Rxb4 {[%clk 0:00:10]}  Rxb4 {[%clk 0:00:03]} 49. Bf1 {[%clk 0:00:11]}  g5 {[%clk 0:00:03]} 50. h4 {[%clk 0:00:11]}  gxh4+ {[%clk 0:00:02]} 51. Kxh4 {[%clk 0:00:12]}  Ng6+ {[%clk 0:00:03]} 52. Kg3 {[%clk 0:00:13]}  h4+ {[%clk 0:00:03]} 53. Kh2 {[%clk 0:00:13]}  Kg5 {[%clk 0:00:04]} 54. Ra5 {[%clk 0:00:13]}  Rb2 {[%clk 0:00:04]} 55. Kg1 {[%clk 0:00:13]}  Nf4 {[%clk 0:00:04]} 56. Ra8 {[%clk 0:00:14]}  Rb1 {[%clk 0:00:05]} 57. Rg8+ {[%clk 0:00:13]}  Kf6 {[%clk 0:00:05]} 58. Re8 {[%clk 0:00:07]}  h3 {[%clk 0:00:05]} 59. Rh8 {[%clk 0:00:06]}  Ne2+ {[%clk 0:00:04]} 60. Kh2 {[%clk 0:00:06]}  Rxf1 {[%clk 0:00:05]} 61. Rxh3 {[%clk 0:00:06]}  Rxf2+ {[%clk 0:00:05]} 62. Kh1 {[%clk 0:00:07]}  Nd4 {[%clk 0:00:05]} 63. Rh6+ {[%clk 0:00:05]}  Kg5 {[%clk 0:00:05]} 64. Rh8 {[%clk 0:00:06]}  Rxf3 {[%clk 0:00:04]} 65. Rg8+ {[%clk 0:00:06]}  Kf4 {[%clk 0:00:04]} 66. Rd8 {[%clk 0:00:07]}  Rd3 {[%clk 0:00:05]} 67. Kg2 {[%clk 0:00:07]}  Rd2+ {[%clk 0:00:05]} 68. Kf1 {[%clk 0:00:08]}  Ke4 {[%clk 0:00:04]} 69. Re8+ {[%clk 0:00:09]}  Kf3 {[%clk 0:00:05]} 70. Ra8 {[%clk 0:00:10]}  Rd1# {[%clk 0:00:05]} 0-1


[Site "https://www.chess.com"]